Workbook

Sheet Dick's Hamburger Data
A1: Data collected: Number of Arrivals to Dick's Hamburgers at 45th Ave in Seattle at Saturday noon lunch during a 1-minute period. | N1: Arrivals to Dick's Hamburgers at 45th Ave in Seattle at Saturday noon lunch during a 1-minute period. Mean = 3.88
A2: Discrete Variable = X = Number of Arrivals in 1 min period during Sat. noon lunch rush (noon to 1 PM)
A4: Properties (Requirements) of a Poisson Experiment:
A5: 1) The probability of an occurrence (success) is the same for all equal-size intervals
A6: 2) The number of occurrences (successes) that occur in any interval is independent of the number of occurrences (successes) in any other interval
A7: 3) The probability of an occurrence (success) is proportional to the size of the interval (if interval doubles, proportion doubles, mean doubles).
A8: 4) Mean = Variance (observed from calculations made off of source data)
A9: 5) As with all our distributions, actual Relative Frequency Pattern from past data fits the "Poisson Pattern"
A11: X = Arrivals During 1 min | C11: X = Arrivals During 1 min | D11: Frequency | E11: P(X) Relative Frequency | G11: Mean | H11: =SUMPRODUCT(C12:C26,E12:E26) -> 3.879693487 | J11: X = Arrivals During 1 min | K11: P(X) POISSON Function | M11: Mean
A12: 0 | C12: 0 | D12: =COUNTIFS($A$12:$A$1316,C12) -> 28 | E12: =D12/$D$27 -> 0.0214559387 | G12: Variance | H12: =SUMPRODUCT((C12:C26-H11)^2,E12:E26) -> 3.751809868 | J12: 0 | M12: Variance
A13: 0 | C13: 1 | D13: 102 | E13: 0.07816091954 | G13: SD | H13: =SQRT(H12) -> 1.936958923 | J13: 1
A14: 0 | C14: 2 | D14: 191 | E14: 0.1463601533 | J14: 2
A15: 0 | C15: 3 | D15: 263 | E15: 0.201532567 | J15: 3
A16: 0 | C16: 4 | D16: 266 | E16: 0.2038314176 | J16: 4
A17: 0 | C17: 5 | D17: 204 | E17: 0.1563218391 | J17: 5
A18: 0 | C18: 6 | D18: 136 | E18: 0.1042145594 | J18: 6
A19: 0 | C19: 7 | D19: 70 | E19: 0.05363984674 | J19: 7
A20: 0 | C20: 8 | D20: 22 | E20: 0.01685823755 | J20: 8
A21: 0 | C21: 9 | D21: 14 | E21: 0.01072796935 | J21: 9
A22: 0 | C22: 10 | D22: 5 | E22: 0.003831417625 | J22: 10
A23: 0 | C23: 11 | D23: 2 | E23: 0.00153256705 | J23: 11
A24: 0 | C24: 12 | D24: 1 | E24: 0.0007662835249 | J24: 12
A25: 0 | C25: 13 | D25: 0 | E25: 0 | J25: 13
A26: 0 | C26: 14 | D26: 1 | E26: 0.0007662835249 | J26: 14
A27: 0 | C27: Total | D27: =SUM(D12:D26) -> 1305 | E27: =SUM(E12:E26) -> 1 | J27: 15
A28: 0 | J28: 16
A29: 0 | J29: 17
A30: 0 | J30: 18
A31: 0 | J31: 19
A32: 0 | J32: 20
A33: 0 | J33: 21
A34: 0 | J34: 22
A35: 0 | J35: 23
A36: 0 | J36: 24
A37: 0 | J37: 25
A38: 0 | J38: 26
A39: 0 | J39: 27
A40: 1 | J40: 28
A41: 1 | J41: 29
A42: 1 | J42: Total
A43: 1
A44: 1
A45: 1
A46: 1
A47: 1
A48: 1
A49: 1
A50: 1
A51: 1
A52: 1
A53: 1
A54: 1
A55: 1
A56: 1
A57: 1
A58: 1
A59: 1
A60: 1
A61: 1
A62: 1
A63: 1
A64: 1
A65: 1
A66: 1
A67: 1
A68: 1
A69: 1
A70: 1
A71: 1
A72: 1
A73: 1
A74: 1
A75: 1
A76: 1
A77: 1
A78: 1
A79: 1
A80: 1
A81: 1
A82: 1
A83: 1
A84: 1
A85: 1
A86: 1
A87: 1
A88: 1
A89: 1
A90: 1
A91: 1
A92: 1
A93: 1
A94: 1
A95: 1
A96: 1
A97: 1
A98: 1
A99: 1
A100: 1
A101: 1
A102: 1
A103: 1
A104: 1
A105: 1
A106: 1
A107: 1
A108: 1
A109: 1
A110: 1
A111: 1
A112: 1
A113: 1
A114: 1
A115: 1
A116: 1
A117: 1
A118: 1
A119: 1
A120: 1
A121: 1
A122: 1
A123: 1
A124: 1
A125: 1
A126: 1
A127: 1
A128: 1
A129: 1
A130: 1
A131: 1
A132: 1
A133: 1
A134: 1
A135: 1
A136: 1
A137: 1
A138: 1
A139: 1
A140: 1
A141: 1
A142: 2
A143: 2
A144: 2
A145: 2
A146: 2
A147: 2
A148: 2
A149: 2
A150: 2
A151: 2
A152: 2
A153: 2
A154: 2
A155: 2
A156: 2
A157: 2
A158: 2
A159: 2
A160: 2
A161: 2
A162: 2
A163: 2
A164: 2
A165: 2
A166: 2
A167: 2
A168: 2
A169: 2
A170: 2
A171: 2
A172: 2
A173: 2
A174: 2
A175: 2
A176: 2
A177: 2
A178: 2
A179: 2
A180: 2
A181: 2
A182: 2
A183: 2
A184: 2
A185: 2
A186: 2
A187: 2
A188: 2
A189: 2
A190: 2
A191: 2
A192: 2
A193: 2
A194: 2
A195: 2
A196: 2
A197: 2
A198: 2
A199: 2
A200: 2
A201: 2
A202: 2
... 1114 more rows

Sheet Dick's Hamburger Data (an)
A1: Data collected: Number of Arrivals to Dick's Hamburgers at 45th Ave in Seattle at Saturday noon lunch during a 1-minute period. | N1: Arrivals to Dick's Hamburgers at 45th Ave in Seattle at Saturday noon lunch during a 1-minute period. Mean = 3.88
A2: Discrete Variable = X = Number of Arrivals in 1 min period during Sat. noon lunch rush (noon to 1 PM)
A4: Properties (Requirements) of a Poisson Experiment:
A5: 1) The probability of an occurrence (success) is the same for all equal-size intervals
A6: 2) The number of occurrences (successes) that occur in any interval is independent of the number of occurrences (successes) in any other interval
A7: 3) The probability of an occurrence (success) is proportional to the size of the interval (if interval doubles, proportion doubles, mean doubles).
A8: 4) Mean = Variance (observed from calculations made off of source data)
A9: 5) As with all our distributions, actual Relative Frequency Pattern from past data fits the "Poisson Pattern"
A11: X = Arrivals During 1 min | C11: X = Arrivals During 1 min | D11: Frequency | E11: P(X) Relative Frequency | G11: Mean | H11: =SUMPRODUCT(C12:C26,E12:E26) -> 3.879693487 | J11: X = Arrivals During 1 min | K11: P(X) POISSON Function | M11: Mean | N11: =SUMPRODUCT(J12:J41,K12:K41) -> 3.879693487
A12: 0 | C12: 0 | D12: =COUNTIFS($A$12:$A$1316,C12) -> 28 | E12: =D12/$D$27 -> 0.0214559387 | G12: Variance | H12: =SUMPRODUCT((C12:C26-H11)^2,E12:E26) -> 3.751809868 | J12: 0 | K12: =_xlfn.POISSON.DIST(J12,$H$11,0) -> 0.02065715591 | M12: Variance | N12: =SUMPRODUCT((J12:J41-N11)^2,K12:K41) -> 3.879693487
A13: 0 | C13: 1 | D13: 102 | E13: 0.07816091954 | G13: SD | H13: =SQRT(H12) -> 1.936958923 | J13: 1 | K13: =_xlfn.POISSON.DIST(J13,$H$11,0) -> 0.08014343322
A14: 0 | C14: 2 | D14: 191 | E14: 0.1463601533 | J14: 2 | K14: 0.1554659779
A15: 0 | C15: 3 | D15: 263 | E15: 0.201532567 | J15: 3 | K15: 0.2010534473
A16: 0 | C16: 4 | D16: 266 | E16: 0.2038314176 | J16: 4 | K16: 0.1950064375
A17: 0 | C17: 5 | D17: 204 | E17: 0.1563218391 | J17: 5 | K17: 0.1513130411
A18: 0 | C18: 6 | D18: 136 | E18: 0.1042145594 | J18: 6 | K18: 0.09784136999
A19: 0 | C19: 7 | D19: 70 | E19: 0.05363984674 | J19: 7 | K19: 0.05422778941
A20: 0 | C20: 8 | D20: 22 | E20: 0.01685823755 | J20: 8 | K20: 0.02629840017
A21: 0 | C21: 9 | D21: 14 | E21: 0.01072796935 | J21: 9 | K21: 0.01133663687
A22: 0 | C22: 10 | D22: 5 | E22: 0.003831417625 | J22: 10 | K22: 0.004398267623
A23: 0 | C23: 11 | D23: 2 | E23: 0.00153256705 | J23: 11 | K23: 0.001551266386
A24: 0 | C24: 12 | D24: 1 | E24: 0.0007662835249 | J24: 12 | K24: 0.000501536508
A25: 0 | C25: 13 | D25: 0 | E25: 0 | J25: 13 | K25: 0.0001496775326
A26: 0 | C26: 14 | D26: 1 | E26: 0.0007662835249 | J26: 14 | K26: 4.147878201e-05
A27: 0 | C27: Total | D27: =SUM(D12:D26) -> 1305 | E27: =SUM(E12:E26) -> 1 | J27: 15 | K27: 1.072833069e-05
A28: 0 | J28: 16 | K28: 2.601414669e-06
A29: 0 | J29: 17 | K29: 5.936877382e-07
A30: 0 | J30: 18 | K30: 1.279625806e-07
A31: 0 | J31: 19 | K31: 2.612924161e-08
A32: 0 | J32: 20 | K32: 5.068672423e-09
A33: 0 | J33: 21 | K33: 9.364235898e-10
A34: 0 | J34: 22 | K34: 1.651380228e-10
A35: 0 | J35: 23 | K35: 2.785586572e-11
A36: 0 | J36: 24 | K36: 4.5030092e-12
A37: 0 | J37: 25 | K37: 6.988118185e-13
A38: 0 | J38: 26 | K38: 1.042759869e-13
A39: 0 | J39: 27 | K39: 1.498366175e-14
A40: 1 | J40: 28 | K40: 2.07614339e-15
A41: 1 | J41: 29 | K41: 2.777517237e-16
A42: 1 | J42: Total | K42: =SUM(K12:K41) -> 1
A43: 1
A44: 1
A45: 1
A46: 1
A47: 1
A48: 1
A49: 1
A50: 1
A51: 1
A52: 1
A53: 1
A54: 1
A55: 1
A56: 1
A57: 1
A58: 1
A59: 1
A60: 1
A61: 1
A62: 1
A63: 1
A64: 1
A65: 1
A66: 1
A67: 1
A68: 1
A69: 1
A70: 1
A71: 1
A72: 1
A73: 1
A74: 1
A75: 1
A76: 1
A77: 1
A78: 1
A79: 1
A80: 1
A81: 1
A82: 1
A83: 1
A84: 1
A85: 1
A86: 1
A87: 1
A88: 1
A89: 1
A90: 1
A91: 1
A92: 1
A93: 1
A94: 1
A95: 1
A96: 1
A97: 1
A98: 1
A99: 1
A100: 1
A101: 1
A102: 1
A103: 1
A104: 1
A105: 1
A106: 1
A107: 1
A108: 1
A109: 1
A110: 1
A111: 1
A112: 1
A113: 1
A114: 1
A115: 1
A116: 1
A117: 1
A118: 1
A119: 1
A120: 1
A121: 1
A122: 1
A123: 1
A124: 1
A125: 1
A126: 1
A127: 1
A128: 1
A129: 1
A130: 1
A131: 1
A132: 1
A133: 1
A134: 1
A135: 1
A136: 1
A137: 1
A138: 1
A139: 1
A140: 1
A141: 1
A142: 2
A143: 2
A144: 2
A145: 2
A146: 2
A147: 2
A148: 2
A149: 2
A150: 2
A151: 2
A152: 2
A153: 2
A154: 2
A155: 2
A156: 2
A157: 2
A158: 2
A159: 2
A160: 2
A161: 2
A162: 2
A163: 2
A164: 2
A165: 2
A166: 2
A167: 2
A168: 2
A169: 2
A170: 2
A171: 2
A172: 2
A173: 2
A174: 2
A175: 2
A176: 2
A177: 2
A178: 2
A179: 2
A180: 2
A181: 2
A182: 2
A183: 2
A184: 2
A185: 2
A186: 2
A187: 2
A188: 2
A189: 2
A190: 2
A191: 2
A192: 2
A193: 2
A194: 2
A195: 2
A196: 2
A197: 2
A198: 2
A199: 2
A200: 2
A201: 2
A202: 2
... 1114 more rows

Sheet POISSON.DIST
A1: POISSON Discrete Probability Distribution
A2: Used to estimate the number of occurrences (successes) over specified interval of time or space
A3: Whereas Binomial counts number of successes over a specified number of trials,
A4: Poisson counts number of occurances (successes) over specified interval of time or space
A5: Good for estimating the probabilities of:
A6: 1) Line waiting situations, where you know the mean number of arrivals over a certain time interval
A7: Example: From past data we know that the mean number of arrivals at the Dick's Hamburger Restaurant at Sat. Lunch is 3.88 people/minute.
A8: With this information we can make estimates of the probability that a certain number of people will show up over this interval
A9: 2) Distance of road or pipe intervals, where you know the mean number of repairs over a certain distance interval
A10: ="Example: From past data we know that the mean number of water line breaks is "&B94&" per 100 miles of pipe in Richmond, CA." -> Example: From past data we know that the mean number of water line breaks is 25 per 100 miles of pipe in Richmond, CA.
A11: With this information we can make estimates of the probability that a certain number of water line breaks will occur over a 100 mile stretch
A12: THE most amazing thing about this distribution is that the only number you need to make your probability calculations is the mean.
A13: Properties (Requirements) of a Poisson Experiment:
A14: 1) The probability of an occurrence (success) is the same for all equal-size intervals
A15: 2) The number of occurrences (successes) that occur in any interval is independent of the number of occurrences (successes) in any other interval
A16: 3) The probability of an occurrence (success) is proportional to the size of the interval (if interval doubles, proportion doubles, mean doubles).
A17: 4) Mean = Variance (observed from calculations made off of source data)
A18: 5) As with all our distributions, actual Relative Frequency Pattern from past data fits the "Poisson Pattern"
A19: f(x) = P(x) = the probability of x occurrences in an interval = height of column when you plot column chart.
A20: Discrete Random Variable = X = Number of occurrences over a specified interval of time or space.
A21: No upper limit for X: 0,1,2,3… , but as x increases past the mean, the probability decreases and gets quite small.
A22: Mean = µ = Calculated from past data
A23: e = constant = 2.71828 = =EXP(1) in Excel
A24: In Excel use: POISSON.DIST(x,mean,cumulative)
A25: x = Number of occurrences over a specified interval of time or space = Discrete Random Variable
A26: mean = µ = Calculated from past data
A27: cumulative = 0 for exactly x OR 1 for less than or equal to x
A29: Example 1:
A30: From past data we know that the mean number of arrivals at the Dick's Hamburger Restaurant at Sat. Lunch is 3.88 people/minute. | L30: Arrivals to Dick's Hamburgers at 45th Ave in Seattle at Saturday noon lunch during a 1-minute period. Mean = 3.88
A31: Assume: The probability of a person arriving is the same for all equal-size intervals
A32: Assume: The number of people arriving in any interval is independent of the number of people arriving in any other interval
A33: Goal: calculate the probability that 0 perople will arrive in 1 minute. 3 to 5 people in 1 minute?
A35: Define Random Discrete Variable = x = | C35: x = Number Arrivals during 1 minute
A36: Expected Value = µ = | B36: 3.88 | C36: people arriving/minute
A37: X | B37: 0 | H37: X | I37: P(x)
A38: ="P("&B37&")" -> P(0) | D38: =B36^B37*EXP(1)^-B36/FACT(B37) -> 0.02065082518 | H38: 0 | I38: =_xlfn.POISSON.DIST(H38,$B$36,0) -> 0.02065082518
A39: X | B39: 3
A40: X | B40: 5
A41: ="P("&$B$39&"<= Arrivals in 1 minute <="&$B$40&")" -> P(3<= Arrivals in 1 minute <=5)
A42: Expected Value = µ = | C42: 0.5 | D42: minutes
A43: X | B43: 2
A44: ="P("&B43&" Arrivals in "&TEXT(C42,"?/?")&" min)" -> P(2 Arrivals in 1/2 min)
A71: Example 2:
A72: From past data we know that the mean number of arrivals for accoutning tutoring is 3 per hour during the morning shift
A73: Assume: The probability of a person arriving is the same for all equal-size intervals
A74: Assume: The number of people arriving in any interval is independent of the number of people arriving in any other interval
A75: Goal: calculate the probability that 5 people will arrive in 1 hour
A77: Define Random Discrete Variable = x = | C77: x = Number Arrivals during 1 hour
A78: Expected Value = µ = | B78: 3 | C78: people arriving/hour
A79: X | B79: 5
A80: ="P("&B79&")" -> P(5) | D80: =B78^B79*EXP(1)^-B78/FACT(B79) -> 0.1008188134
A86: Example 3:
A87: ="From past data we know that the mean number of water line breaks is "&B94&" per 100 miles of pipe in Richmond, CA." -> From past data we know that the mean number of water line breaks is 25 per 100 miles of pipe in Richmond, CA. | N87: ="Mean number of water line breaks is "&B94&" per 100 miles of pipe in Richmond, CA." -> Mean number of water line breaks is 25 per 100 miles of pipe in Richmond, CA.
A88: With this information we can make estimates of the probability that a certain number of water line breaks will occur over a 100 mile stretch in Richmond, CA.
A89: Assume: The probability of a water breaks is the same for all equal-size intervals
A90: Assume: The number of water breaks in any interval is independent of the number of water breaks in any other interval
A91: ="Goal: calculate the probability that "&B95&" or more breaks will occur over a 100 mile stretch of pipe." -> Goal: calculate the probability that 30 or more breaks will occur over a 100 mile stretch of pipe.
A93: Define Random Discrete Variable = x = | C93: x = Number of water breaks in 100 miles of pipe
A94: Expected Value = µ = | B94: 25 | C94: water breaks/100 miles
A95: X | B95: 30
A96: ="P(x>="&$B$95&")" -> P(x>=30)
A97: ="P(x>="&$B$95&")" -> P(x>=30)
A99: X | B99: 10
A100: ="P(x<"&$B$99&")" -> P(x<10)
A101: ="P(x<"&$B$99&")" -> P(x<10)
A103: X | B103: P(x)
A104: 0
A105: 1
A106: 2
A107: 3
A108: 4
A109: 5
A110: 6
A111: 7
A112: 8
A113: 9
A114: 10
A115: 11
A116: 12
A117: 13
A118: 14
A119: 15
A120: 16
A121: 17
A122: 18
A123: 19
A124: 20
A125: 21
A126: 22
A127: 23
A128: 24
A129: 25
A130: 26
A131: 27
A132: 28
A133: 29
A134: 30
A135: 31
A136: 32
A137: 33
A138: 34
A139: 35
A140: 36
A141: 37
A142: 38
A143: 39
A144: 40
A145: 41
A146: 42
A147: 43
A148: 44
A149: 45
A150: 46
A151: 47
A152: 48
A153: 49
A154: 50
A155: 51
A156: 52
A157: 53
A158: 54
A159: 55
A160: 56
A161: 57
A162: 58
A163: 59
A164: 60
A165: 61
A166: 62
A167: 63
A168: 64
A169: 65
A170: 66
A171: 67
A172: 68
A173: 69
A174: 70
A175: 71
A176: 72
A177: 73
A178: 74
A179: Total

Sheet POISSON.DIST (an)
A1: POISSON Discrete Probability Distribution
A2: Used to estimate the number of occurrences (successes) over specified interval of time or space
A3: Whereas Binomial counts number of successes over a specified number of trials,
A4: Poisson counts number of occurances (successes) over specified interval of time or space
A5: Good for estimating the probabilities of:
A6: 1) Line waiting situations, where you know the mean number of arrivals over a certain time interval
A7: Example: From past data we know that the mean number of arrivals at the Dick's Hamburger Restaurant at Sat. Lunch is 3.88 people/minute.
A8: With this information we can make estimates of the probability that a certain number of people will show up over this interval
A9: 2) Distance of road or pipe intervals, where you know the mean number of repairs over a certain distance interval
A10: ="Example: From past data we know that the mean number of water line breaks is "&B94&" per 100 miles of pipe in Richmond, CA." -> Example: From past data we know that the mean number of water line breaks is 25 per 100 miles of pipe in Richmond, CA.
A11: With this information we can make estimates of the probability that a certain number of water line breaks will occur over a 100 mile stretch
A12: THE most amazing thing about this distribution is that the only number you need to make your probability calculations is the mean.
A13: Properties (Requirements) of a Poisson Experiment:
A14: 1) The probability of an occurrence (success) is the same for all equal-size intervals
A15: 2) The number of occurrences (successes) that occur in any interval is independent of the number of occurrences (successes) in any other interval
A16: 3) The probability of an occurrence (success) is proportional to the size of the interval (if interval doubles, proportion doubles, mean doubles).
A17: 4) Mean = Variance (observed from calculations made off of source data)
A18: 5) As with all our distributions, actual Relative Frequency Pattern from past data fits the "Poisson Pattern"
A19: f(x) = P(x) = the probability of x occurrences in an interval = height of column when you plot column chart.
A20: Discrete Random Variable = X = Number of occurrences over a specified interval of time or space.
A21: No upper limit for X: 0,1,2,3… , but as x increases past the mean, the probability decreases and gets quite small.
A22: Mean = µ = Calculated from past data
A23: e = constant = 2.71828 = =EXP(1) in Excel
A24: In Excel use: POISSON.DIST(x,mean,cumulative)
A25: x = Number of occurrences over a specified interval of time or space = Discrete Random Variable
A26: mean = µ = Calculated from past data
A27: cumulative = 0 for exactly x OR 1 for less than or equal to x
A29: Example 1:
A30: From past data we know that the mean number of arrivals at the Dick's Hamburger Restaurant at Sat. Lunch is 3.88 people/minute. | L30: Arrivals to Dick's Hamburgers at 45th Ave in Seattle at Saturday noon lunch during a 1-minute period. Mean = 3.88
A31: Assume: The probability of a person arriving is the same for all equal-size intervals
A32: Assume: The number of people arriving in any interval is independent of the number of people arriving in any other interval
A33: Goal: calculate the probability that 0 perople will arrive in 1 minute. 3 to 5 people in 1 minute?
A35: Define Random Discrete Variable = x = | C35: x = Number Arrivals during 1 minute
A36: Expected Value = µ = | B36: 3.88 | C36: people arriving/minute
A37: X | B37: 0 | H37: X | I37: P(x)
A38: ="P("&B37&")" -> P(0) | B38: =_xlfn.POISSON.DIST(B37,B36,0) -> 0.02065082518 | D38: =B36^B37*EXP(1)^-B36/FACT(B37) -> 0.02065082518 | H38: 0 | I38: =_xlfn.POISSON.DIST(H38,$B$36,0) -> 0.02065082518
A39: X | B39: 3 | H39: 1 | I39: =_xlfn.POISSON.DIST(H39,$B$36,0) -> 0.08012520171
A40: X | B40: 5 | H40: 2 | I40: 0.1554428913
A41: ="P("&$B$39&"<= Arrivals in 1 minute <="&$B$40&")" -> P(3<= Arrivals in 1 minute <=5) | B41: =_xlfn.POISSON.DIST(B40,B36,1)-_xlfn.POISSON.DIST(B39-1,B36,1) -> 0.5473741933 | H41: 3 | I41: 0.2010394728
A42: Expected Value = µ = | B42: =B36/2 -> 1.94 | C42: 0.5 | D42: minutes | H42: 4 | I42: 0.1950082886
A43: X | B43: 2 | H43: 5 | I43: 0.1513264319
A44: ="P("&B43&" Arrivals in "&TEXT(C42,"?/?")&" min)" -> P(2 Arrivals in 1/2 min) | B44: =_xlfn.POISSON.DIST(B43,B42,0) -> 0.2704220927 | H44: 6 | I44: 0.09785775932
H45: 7 | I45: 0.05424115802
H46: 8 | I46: 0.02630696164
H47: 9 | I47: 0.01134122346
H48: 10 | I48: 0.004400394704
H49: 11 | I49: 0.001552139223
H50: 12 | I50: 0.0005018583487
H51: 13 | I51: 0.0001497854148
H52: 14 | I52: 4.151195783e-05
H53: 15 | I53: 1.073775976e-05
H54: 16 | I54: 2.603906741e-06
H55: 17 | I55: 5.943034209e-07
H56: 18 | I56: 1.281054041e-07
H57: 19 | I57: 2.616047199e-08
H58: 20 | I58: 5.075131566e-09
H59: 21 | I59: 9.37690975e-10
H60: 22 | I60: 1.653745901e-10
H61: 23 | I61: 2.789797434e-11
H62: 24 | I62: 4.510172518e-12
H63: 25 | I63: 6.999787748e-13
H64: 26 | I64: 1.04458371e-13
H65: 27 | I65: 1.50110548e-14
H66: 28 | I66: 2.080103307e-15
H67: 29 | I67: 2.78303477e-16
H68: 30 | I68: 3.599391636e-17
H69: Total | I69: =SUM(I38:I68) -> 1
A71: Example 2:
A72: From past data we know that the mean number of arrivals for accoutning tutoring is 3 per hour during the morning shift
A73: Assume: The probability of a person arriving is the same for all equal-size intervals
A74: Assume: The number of people arriving in any interval is independent of the number of people arriving in any other interval
A75: Goal: calculate the probability that 5 people will arrive in 1 hour
A77: Define Random Discrete Variable = x = | C77: x = Number Arrivals during 1 hour
A78: Expected Value = µ = | B78: 3 | C78: people arriving/hour
A79: X | B79: 5
A80: ="P("&B79&")" -> P(5) | B80: =_xlfn.POISSON.DIST(B79,B78,0) -> 0.1008188134 | D80: =B78^B79*EXP(1)^-B78/FACT(B79) -> 0.1008188134
A86: Example 3:
A87: ="From past data we know that the mean number of water line breaks is "&B94&" per 100 miles of pipe in Richmond, CA." -> From past data we know that the mean number of water line breaks is 25 per 100 miles of pipe in Richmond, CA. | N87: ="Mean number of water line breaks is "&B94&" per 100 miles of pipe in Richmond, CA." -> Mean number of water line breaks is 25 per 100 miles of pipe in Richmond, CA.
A88: With this information we can make estimates of the probability that a certain number of water line breaks will occur over a 100 mile stretch in Richmond, CA.
A89: Assume: The probability of a water breaks is the same for all equal-size intervals
A90: Assume: The number of water breaks in any interval is independent of the number of water breaks in any other interval
A91: ="Goal: calculate the probability that "&B95&" or more breaks will occur over a 100 mile stretch of pipe." -> Goal: calculate the probability that 30 or more breaks will occur over a 100 mile stretch of pipe.
A93: Define Random Discrete Variable = x = | C93: x = Number of water breaks in 100 miles of pipe
A94: Expected Value = µ = | B94: 25 | C94: water breaks/100 miles
A95: X | B95: 30
A96: ="P(x>="&$B$95&")" -> P(x>=30) | B96: =1-_xlfn.POISSON.DIST(B95-1,B94,1) -> 0.182103916
A97: ="P(x>="&$B$95&")" -> P(x>=30) | B97: =SUM(B134:B178) -> 0.182103916
A99: X | B99: 10
A100: ="P(x<"&$B$99&")" -> P(x<10) | B100: =_xlfn.POISSON.DIST(B99-1,B94,1) -> 0.0002214766382
A101: ="P(x<"&$B$99&")" -> P(x<10) | B101: =SUM(B104:B113) -> 0.0002214766382
A103: X | B103: P(x)
A104: 0 | B104: =_xlfn.POISSON.DIST(A104,$B$94,0) -> 1.388794386e-11
A105: 1 | B105: =_xlfn.POISSON.DIST(A105,$B$94,0) -> 3.471985966e-10
A106: 2 | B106: 4.339982458e-09
A107: 3 | B107: 3.616652048e-08
A108: 4 | B108: 2.26040753e-07
A109: 5 | B109: 1.130203765e-06
A110: 6 | B110: 4.709182354e-06
A111: 7 | B111: 1.681850841e-05
A112: 8 | B112: 5.255783878e-05
A113: 9 | B113: 0.0001459939966
A114: 10 | B114: 0.0003649849915
A115: 11 | B115: 0.0008295113443
A116: 12 | B116: 0.001728148634
A117: 13 | B117: 0.003323362758
A118: 14 | B118: 0.005934576353
A119: 15 | B119: 0.009890960588
A120: 16 | B120: 0.01545462592
A121: 17 | B121: 0.02272739106
A122: 18 | B122: 0.03156582091
A123: 19 | B123: 0.04153397489
A124: 20 | B124: 0.05191746861
A125: 21 | B125: 0.06180651025
A126: 22 | B126: 0.07023467074
A127: 23 | B127: 0.07634203341
A128: 24 | B128: 0.07952295147
A129: 25 | B129: 0.07952295147
A130: 26 | B130: 0.07646437641
A131: 27 | B131: 0.07080034853
A132: 28 | B132: 0.0632145969
A133: 29 | B133: 0.05449534216
A134: 30 | B134: 0.04541278513
A135: 31 | B135: 0.03662321381
A136: 32 | B136: 0.02861188579
A137: 33 | B137: 0.02167567106
A138: 34 | B138: 0.01593799342
A139: 35 | B139: 0.01138428102
A140: 36 | B140: 0.007905750706
A141: 37 | B141: 0.00534172345
A142: 38 | B142: 0.003514291743
A143: 39 | B143: 0.002252751118
A144: 40 | B144: 0.001407969448
A145: 41 | B145: 0.0008585179564
A146: 42 | B146: 0.0005110225931
A147: 43 | B147: 0.0002971061588
A148: 44 | B148: 0.0001688103175
A149: 45 | B149: 9.378350971e-05
A150: 46 | B150: 5.096929876e-05
A151: 47 | B151: 2.711132913e-05
A152: 48 | B152: 1.412048392e-05
A153: 49 | B153: 7.20432853e-06
A154: 50 | B154: 3.602164265e-06
A155: 51 | B155: 1.765766797e-06
A156: 52 | B156: 8.489263446e-07
A157: 53 | B157: 4.00436955e-07
A158: 54 | B158: 1.853874792e-07
A159: 55 | B159: 8.426703598e-08
A160: 56 | B160: 3.761921249e-08
A161: 57 | B161: 1.64996546e-08
A162: 58 | B162: 7.111920087e-09
A163: 59 | B163: 3.013525461e-09
A164: 60 | B164: 1.255635609e-09
A165: 61 | B165: 5.146047576e-10
A166: 62 | B166: 2.075019184e-10
A167: 63 | B167: 8.234203111e-11
A168: 64 | B168: 3.21648559e-11
A169: 65 | B169: =_xlfn.POISSON.DIST(A169,$B$94,0) -> 1.237109842e-11
A170: 66 | B170: 4.68602213e-12
A171: 67 | B171: 1.74851572e-12
A172: 68 | B172: 6.428366618e-13
A173: 69 | B173: 2.32911834e-13
A174: 70 | B174: 8.318279786e-14
A175: 71 | B175: 2.928971755e-14
A176: 72 | B176: 1.017004082e-14
A177: 73 | B177: 3.482890691e-15
A178: 74 | B178: 1.17665226e-15
A179: Total | B179: =SUM(B104:B178) -> 1

Sheet HYPGEOM.DIST
A1: Hypergeometric Distribution
A2: Similar to Binomial Distribution except: 1) the trails are not independent AND 2) the probability of success changes from trial to trial.
A3: In Excel use: HYPGEOM.DIST(x,n,population_s,number_pop,cumulative)
A4: x = Number of Successes in Sample = Discrete Random Variable = sample_s
A5: n = Trials/Steps in Experiment = Sample Size = number_sample
A6: Number Successes in Pop. = population_s
A7: Population Size = number_pop
A8: cumulative = FALSE = 0 = probability mass function. Use to calculate exactly x
A9: OR
A10: cumulative = TRUE = 1 = probability mass function. Use to calculate <= x (everything from smallest up to and including x)
A12: Probability of pulling 2 Face Cards in 5 tries?
A13: Success = Face card | G13: Face Card (Not Ace)
A14: Event = pull 2 face cards (not an ace) in 5 tries
A15: x = Number of Successes in Sample = Discrete Random Variable = sample_s | G15: 2
A16: n = Trials/Steps in Experiment = Sample Size = number_sample | G16: 5
A17: Number Successes in Pop. = population_s | G17: 12
A18: Population Size = number_pop | G18: 52
A19: cumulative = FALSE = 0 = probability mass function. Use to calculate exactly x | G19: 0
A20: Number of Sample Points | G20: =COMBIN(G16,G15) -> 10 | I20: =_xlfn.FORMULATEXT(G20) -> =COMBIN(G16,G15)
B22: Probability of pulling 2 Face Cards in 5 tries
B23: Probability of pulling 2 Face Cards in 5 tries
A26: Sample Point | B26: Step 1 | C26: Step 2 | D26: Step 3 | E26: Step 4 | F26: Step 5 | G26: Prob.
A27: Sample Point 1 | B27: F | C27: F | D27: NF | E27: NF | F27: NF | G27: =12/52*11/51*(50-10)/50*(49-10)/49*(48-10)/48 -> 0.02509003601 | I27: =_xlfn.FORMULATEXT(G27) -> =12/52*11/51*(50-10)/50*(49-10)/49*(48-10)/48
A28: Sample Point 2 | B28: F | C28: NF | D28: F | E28: NF | F28: NF | G28: =12/52*(51-11)/51*11/50*(49-10)/49*(48-10)/48 -> 0.02509003601 | I28: =12/52*(51-11)/51*11/50*(49-10)/49*(48-10)/48
A29: Sample Point 3 | B29: F | C29: NF | D29: NF | E29: F | F29: NF | G29: =12/52*(51-11)/51*(50-11)/50*11/49*(48-10)/48 -> 0.02509003601 | I29: =12/52*(51-11)/51*(50-11)/50*11/49*(48-10)/48
A30: Sample Point 4 | B30: F | C30: NF | D30: NF | E30: NF | F30: F | G30: =12/52*(51-11)/51*(50-11)/50*(49-11)/49*11/48 -> 0.02509003601 | I30: =12/52*(51-11)/51*(50-11)/50*(49-11)/49*11/48
A31: Sample Point 5 | B31: NF | C31: F | D31: F | E31: NF | F31: NF | G31: =(52-12)/52*12/51*11/50*(49-10)/49*(48-10)/48 -> 0.02509003601 | I31: =(52-12)/52*12/51*11/50*(49-10)/49*(48-10)/48
A32: Sample Point 6 | B32: NF | C32: F | D32: NF | E32: F | F32: NF | G32: =(52-12)/52*12/51*(50-11)/50*11/49*(48-10)/48 -> 0.02509003601 | I32: =(52-12)/52*12/51*(50-11)/50*11/49*(48-10)/48
A33: Sample Point 7 | B33: NF | C33: F | D33: NF | E33: NF | F33: F | G33: =(52-12)/52*12/51*(50-11)/50*(49-11)/49*11/48 -> 0.02509003601 | I33: =(52-12)/52*12/51*(50-11)/50*(49-11)/49*11/48
A34: Sample Point 8 | B34: NF | C34: NF | D34: F | E34: F | F34: NF | G34: =(52-12)/52*(51-12)/51*12/50*11/49*(48-10)/48 -> 0.02509003601 | I34: =(52-12)/52*(51-12)/51*12/50*11/49*(48-10)/48
A35: Sample Point 9 | B35: NF | C35: NF | D35: F | E35: NF | F35: F | G35: =(52-12)/52*(51-12)/51*12/50*(49-11)/49*11/48 -> 0.02509003601 | I35: =(52-12)/52*(51-12)/51*12/50*(49-11)/49*11/48
A36: Sample Point 10 | B36: NF | C36: NF | D36: NF | E36: F | F36: F | G36: =(52-12)/52*(51-12)/51*(50-12)/50*12/49*11/48 -> 0.02509003601 | I36: =(52-12)/52*(51-12)/51*(50-12)/50*12/49*11/48

Sheet HYPGEOM.DIST (an)
A1: Hypergeometric Distribution
A2: Similar to Binomial Distribution except: 1) the trails are not independent AND 2) the probability of success changes from trial to trial.
A3: In Excel use: HYPGEOM.DIST(x,n,population_s,number_pop,cumulative)
A4: x = Number of Successes in Sample = Discrete Random Variable = sample_s
A5: n = Trials/Steps in Experiment = Sample Size = number_sample
A6: Number Successes in Pop. = population_s
A7: Population Size = number_pop
A8: cumulative = FALSE = 0 = probability mass function. Use to calculate exactly x
A9: OR
A10: cumulative = TRUE = 1 = probability mass function. Use to calculate <= x (everything from smallest up to and including x)
A12: Probability of pulling 2 Face Cards in 5 tries?
A13: Success = Face card | G13: Face Card (Not Ace)
A14: Event = pull 2 face cards (not an ace) in 5 tries
A15: x = Number of Successes in Sample = Discrete Random Variable = sample_s | G15: 2
A16: n = Trials/Steps in Experiment = Sample Size = number_sample | G16: 5
A17: Number Successes in Pop. = population_s | G17: 12
A18: Population Size = number_pop | G18: 52
A19: cumulative = FALSE = 0 = probability mass function. Use to calculate exactly x | G19: 0
A20: Number of Sample Points | G20: =COMBIN(G16,G15) -> 10 | I20: =_xlfn.FORMULATEXT(G20) -> =COMBIN(G16,G15)
B22: Probability of pulling 2 Face Cards in 5 tries | G22: =SUM(G26:G35) -> 0.2509003601 | I22: =_xlfn.FORMULATEXT(G22) -> =SUM(G26:G35)
B23: Probability of pulling 2 Face Cards in 5 tries | G23: =_xlfn.HYPGEOM.DIST(G15,G16,G17,G18,0) -> 0.2509003601 | I23: =_xlfn.FORMULATEXT(G23) -> =HYPGEOM.DIST(G15,G16,G17,G18,0)
A25: Sample Point | B25: Step 1 | C25: Step 2 | D25: Step 3 | E25: Step 4 | F25: Step 5 | G25: Prob.
A26: Sample Point 1 | B26: F | C26: F | D26: NF | E26: NF | F26: NF | G26: =12/52*11/51*(50-10)/50*(49-10)/49*(48-10)/48 -> 0.02509003601 | I26: =_xlfn.FORMULATEXT(G26) -> =12/52*11/51*(50-10)/50*(49-10)/49*(48-10)/48
A27: Sample Point 2 | B27: F | C27: NF | D27: F | E27: NF | F27: NF | G27: =12/52*(51-11)/51*11/50*(49-10)/49*(48-10)/48 -> 0.02509003601 | I27: =12/52*(51-11)/51*11/50*(49-10)/49*(48-10)/48
A28: Sample Point 3 | B28: F | C28: NF | D28: NF | E28: F | F28: NF | G28: =12/52*(51-11)/51*(50-11)/50*11/49*(48-10)/48 -> 0.02509003601 | I28: =12/52*(51-11)/51*(50-11)/50*11/49*(48-10)/48
A29: Sample Point 4 | B29: F | C29: NF | D29: NF | E29: NF | F29: F | G29: =12/52*(51-11)/51*(50-11)/50*(49-11)/49*11/48 -> 0.02509003601 | I29: =12/52*(51-11)/51*(50-11)/50*(49-11)/49*11/48
A30: Sample Point 5 | B30: NF | C30: F | D30: F | E30: NF | F30: NF | G30: =(52-12)/52*12/51*11/50*(49-10)/49*(48-10)/48 -> 0.02509003601 | I30: =(52-12)/52*12/51*11/50*(49-10)/49*(48-10)/48
A31: Sample Point 6 | B31: NF | C31: F | D31: NF | E31: F | F31: NF | G31: =(52-12)/52*12/51*(50-11)/50*11/49*(48-10)/48 -> 0.02509003601 | I31: =(52-12)/52*12/51*(50-11)/50*11/49*(48-10)/48
A32: Sample Point 7 | B32: NF | C32: F | D32: NF | E32: NF | F32: F | G32: =(52-12)/52*12/51*(50-11)/50*(49-11)/49*11/48 -> 0.02509003601 | I32: =(52-12)/52*12/51*(50-11)/50*(49-11)/49*11/48
A33: Sample Point 8 | B33: NF | C33: NF | D33: F | E33: F | F33: NF | G33: =(52-12)/52*(51-12)/51*12/50*11/49*(48-10)/48 -> 0.02509003601 | I33: =(52-12)/52*(51-12)/51*12/50*11/49*(48-10)/48
A34: Sample Point 9 | B34: NF | C34: NF | D34: F | E34: NF | F34: F | G34: =(52-12)/52*(51-12)/51*12/50*(49-11)/49*11/48 -> 0.02509003601 | I34: =(52-12)/52*(51-12)/51*12/50*(49-11)/49*11/48
A35: Sample Point 10 | B35: NF | C35: NF | D35: NF | E35: F | F35: F | G35: =(52-12)/52*(51-12)/51*(50-12)/50*12/49*11/48 -> 0.02509003601 | I35: =(52-12)/52*(51-12)/51*(50-12)/50*12/49*11/48

Sheet H(2)
A1: Example 2:
A2: Success = Face card | E2: Face Card (Not Ace)
A3: Event = pull 2 face cards (not an ace) in 5 tries
A4: x = Number of Successes in Sample = Discrete Random Variable = sample_s | E4: 2
A5: n = Trials/Steps in Experiment = Sample Size = number_sample | E5: 5
A6: Number Successes in Pop. = population_s | E6: 12
A7: Population Size = number_pop | E7: 52
A8: cumulative = FALSE = 0 = probability mass function. Use to calculate exactly x | E8: 0
A10: X = Pull Face in 5 tries | B10: P(x)
A11: 0
A12: 1
A13: 2
A14: 3
A15: 4
A16: 5
A17: Total
A19: Calculate the probability of getting 0 Face cards OR 1 face card OR 2 face cards in 5 tries:
A20: X | B20: P(X) | C20: SUM
A21: 2 | B21: ="P(x<="&A21&")" -> P(x<=2)
C22: HYPGEOM.DIST
A26: Example 3:
A27: During the financial crisis of 2008, of the ten biggest banks, only three increase lending after they were given TARP funds of about 2 Billion dolars were given out.
A28: ="If you took at random sample of "&B32&" of the ten biggest banks at that time, what is the probability that 1 of them would have increased lending, all 3?" -> If you took at random sample of 4 of the ten biggest banks at that time, what is the probability that 1 of them would have increased lending, all 3?
A30: Population size = | B30: 10
A31: success in pop | B31: 3
A32: Sample size | B32: 4
A33: Success = | B33: Did lend $
A34: x = Number | B34: # that did lend in sample
A35: x | B35: P(x) | G35: P(x)
A36: 1 | G36: =3/10*(9-2)/9*(8-2)/8*(7-2)/7*B32 -> 0.5
A37: 3

Sheet H(2an)
A1: Example 2:
A2: Success = Face card | E2: Face Card (Not Ace)
A3: Event = pull 2 face cards (not an ace) in 5 tries
A4: x = Number of Successes in Sample = Discrete Random Variable = sample_s | E4: 2
A5: n = Trials/Steps in Experiment = Sample Size = number_sample | E5: 5
A6: Number Successes in Pop. = population_s | E6: 12
A7: Population Size = number_pop | E7: 52
A8: cumulative = FALSE = 0 = probability mass function. Use to calculate exactly x | E8: 0
A10: X = Pull Face in 5 tries | B10: P(x)
A11: 0 | B11: =_xlfn.HYPGEOM.DIST(A11,$E$5,$E$6,$E$7,0) -> 0.2531812725
A12: 1 | B12: =_xlfn.HYPGEOM.DIST(A12,$E$5,$E$6,$E$7,0) -> 0.4219687875
A13: 2 | B13: 0.2509003601
A14: 3 | B14: 0.06602641056
A15: 4 | B15: 0.007618431988
A16: 5 | B16: 0.0003047372795
A17: Total | B17: =SUM(B11:B16) -> 1
A19: Calculate the probability of getting 0 Face cards OR 1 face card OR 2 face cards in 5 tries:
A20: X | B20: P(X) | C20: SUM
A21: 2 | B21: ="P(x<="&A21&")" -> P(x<=2) | C21: =SUM(B11:B13) -> 0.9260504202
C22: HYPGEOM.DIST
C23: =_xlfn.HYPGEOM.DIST(A21,E5,E6,E7,1) -> 0.9260504202
A26: Example 3:
A27: During the financial crisis of 2008, of the ten biggest banks, only three increase lending after they were given TARP funds of about 2 Billion dolars were given out.
A28: ="If you took at random sample of "&B32&" of the ten biggest banks at that time, what is the probability that 1 of them would have increased lending, all 3?" -> If you took at random sample of 4 of the ten biggest banks at that time, what is the probability that 1 of them would have increased lending, all 3?
A30: Population size = | B30: 10
A31: success in pop | B31: 3
A32: Sample size | B32: 4
A33: Success = | B33: Did lend $
A34: x = Number | B34: # that did lend in sample
A35: x | B35: P(x) | D35: P(x)
A36: 1 | B36: =_xlfn.HYPGEOM.DIST(A36,$B$32,$B$31,$B$30,0) -> 0.5 | D36: =3/10*(9-2)/9*(8-2)/8*(7-2)/7*B32 -> 0.5
A37: 3 | B37: =_xlfn.HYPGEOM.DIST(A37,$B$32,$B$31,$B$30,0) -> 0.03333333333
